bitfinex-derivatives/quotes_BNBF0:USTF0_20230831
["timestamp","ask_amount","ask_price","bid_price","bid_amount"]
[1693481271918,0.07144666,224.79,224.37,0.19143171]
[1693481272518,0.07144666,224.8,224.37,0.26206255]
[1693481272717,0.07144666,224.79,224.38,0.26206255]
[1693481272911,0.07144666,224.79,224.39,0.19143171]
[1693481273714,0.07144666,224.78,224.39,0.26206255]
[1693481273914,0.07144666,224.78,224.4,0.19143171]
[1693481274620,0.07144666,224.77,224.4,0.26206255]
[1693481274820,0.07144666,224.77,224.41,0.19143171]
[1693481275826,0.07144666,224.82,224.45,0.07063084]
[1693481276023,0.07144666,224.82,224.46,0.19143171]
[1693481282330,0.07144666,224.9,224.53,0.07063084]
[1693481282529,0.07144666,224.9,224.54,0.19143171]
[1693481283327,0.07144666,224.92,224.54,0.19143171]
[1693481283527,0.07144666,224.92,224.55,0.19143171]
[1693481283824,0.07144666,224.92,224.51,0.07063084]
[1693481283825,0.07144666,224.92,224.56,0.19143171]
[1693481284030,0.07144666,224.92,224.57,0.19143171]
[1693481284329,0.07144666,224.92,224.58,0.19143171]
[1693481284530,0.07144666,224.93,224.59,0.19143171]
[1693481284727,0.07144666,224.93,224.51,0.19143171]
[1693481285033,0.07144666,224.93,224.52,0.19143171]
[1693481285230,0.07144666,224.93,224.53,0.19143171]
[1693481285429,0.07144666,224.94,224.51,0.19143171]
[1693481285630,0.07144666,224.94,224.52,0.19143171]
[1693481285928,0.07144666,224.94,224.53,0.19143171]
[1693481286130,0.07144666,224.94,224.54,0.19143171]
[1693481286324,0.47631113,224.99,224.48,0.07063084]
[1693481286325,0.07144666,224.95,224.49,0.19143171]
[1693481286530,0.07144666,224.95,224.5,0.19143171]
[1693481286731,0.07144666,224.95,224.51,0.19143171]
[1693481286927,0.07144666,224.96,224.49,0.19143171]
[1693481287123,0.07144666,224.96,224.5,0.19143171]
[1693481287331,0.07144666,224.96,224.49,0.19143171]
[1693481287534,0.07144666,224.96,224.5,0.19143171]
[1693481287830,0.81733497,224.95,224.51,0.19143171]
[1693481288029,0.81733497,224.95,224.52,0.19143171]
[1693481288331,0.81733497,224.95,224.53,0.19143171]
[1693481288531,0.07144666,224.97,224.54,0.19143171]
[1693481288734,0.81734972,224.96,224.47,0.19143171]
[1693481288929,0.81734972,224.96,224.48,0.19143171]
[1693481289131,0.81734972,224.96,224.49,0.19143171]
[1693481289326,0.81734972,224.96,224.5,0.19143171]
[1693481289532,0.81734972,224.96,224.22,0.94174463]
[1693481289533,0.07144666,224.93,224.51,0.19143171]
[1693481289735,0.88879638,224.92,224.43,0.19143171]
[1693481290033,0.81734972,224.91,224.44,0.19143171]
[1693481290234,0.81734972,224.91,224.41,0.19143171]
[1693481290436,0.81734972,224.91,224.42,0.19143171]
[1693481290628,0.81734972,224.91,224.4,0.07063084]
[1693481290629,0.81734972,224.91,224.41,0.19143171]
[1693481290833,0.81734972,224.91,224.42,0.19143171]
[1693481291033,0.81734972,224.91,224.43,0.19143171]
[1693481291334,0.81734972,224.91,224.44,0.19143171]
[1693481291634,0.81734972,224.91,224.45,0.19143171]
[1693481291836,0.81734972,224.91,224.46,0.19143171]
[1693481292032,0.81734972,224.91,224.41,0.19143171]
[1693481292234,0.81734972,224.91,224.42,0.19143171]
[1693481292434,0.81734972,224.91,224.43,0.19143171]
[1693481292734,0.81734972,224.91,224.44,0.19143171]
[1693481292931,0.81734972,224.91,224.45,0.19143171]
[1693481293134,0.81734972,224.91,224.46,0.19143171]
[1693481293334,0.81734972,224.91,224.41,0.19143171]
[1693481293530,0.81734972,224.91,224.42,0.19143171]
[1693481293735,0.81734972,224.91,224.43,0.19143171]
[1693481293933,0.81734972,224.91,224.41,0.19143171]
[1693481294133,0.81734972,224.91,224.42,0.19143171]
[1693481294334,0.81734972,224.91,224.43,0.19143171]
[1693481294534,0.81734972,224.91,224.41,0.19143171]
[1693481294736,0.81734972,224.91,224.42,0.19143171]
[1693481295037,0.81734972,224.91,224.43,0.19143171]
[1693481295236,0.81734972,224.91,224.41,0.19143171]
[1693481295430,0.88879638,224.91,224.42,0.19143171]
[1693481295629,0.81734972,224.9,224.43,0.19143171]
[1693481295833,0.81734972,224.9,224.44,0.19143171]
[1693481296128,0.81734972,224.9,224.45,0.19143171]
[1693481296334,0.81734972,224.9,224.46,0.19143171]
[1693481296530,0.81734972,224.9,224.47,0.19143171]
[1693481296735,0.81734972,224.9,224.41,0.19143171]
[1693481296935,0.81734972,224.9,224.42,0.19143171]
[1693481297136,0.81734972,224.9,224.43,0.19143171]
[1693481297333,0.81734972,224.9,224.34,0.14126169]
[1693481297334,0.81734972,224.9,224.44,0.19143171]
[1693481297532,0.81734972,224.9,224.42,0.19143171]
[1693481297738,0.81734972,224.9,224.43,0.19143171]
[1693481297931,0.81734972,224.9,224.42,0.19143171]
[1693481298135,0.81734972,224.9,224.43,0.19143171]
[1693481298336,0.81734972,224.9,224.44,0.19143171]
[1693481298537,0.81734972,224.9,224.42,0.19143171]
[1693481298737,0.81734972,224.9,224.45,0.19143171]
[1693481298937,0.88879638,224.9,224.46,0.19143171]
[1693481299135,0.07144666,224.9,224.42,0.19143171]
[1693481299339,0.07144666,224.9,224.43,0.19143171]
[1693481299641,0.07144666,224.9,224.41,0.07063084]
[1693481299642,0.07144666,224.9,224.44,0.19143171]
[1693481299940,0.07144666,224.9,224.45,0.19143171]
[1693481300239,0.07144666,224.9,224.46,0.19143171]
[1693481300434,0.07144666,224.9,224.47,0.19143171]
[1693481300632,0.07144666,224.9,224.48,0.19143171]
[1693481300838,0.07144666,224.9,224.49,0.19143171]
[1693481301033,0.07144666,224.9,224.5,0.19143171]
[1693481301237,0.07144666,224.9,224.51,0.19143171]
[1693481301442,0.07144666,224.89,224.52,0.19143171]
[1693481301637,0.07144666,224.89,224.53,0.19143171]
[1693481301840,0.07144666,224.89,224.54,0.19143171]
[1693481302140,0.07144666,224.89,224.55,0.19143171]
[1693481302342,0.07144666,224.89,224.43,0.26206255]
[1693481302539,0.07144666,224.89,224.44,0.19143171]
[1693481303336,0.07144666,224.88,224.44,0.19143171]
[1693481303840,0.07144666,224.88,224.44,0.26206255]
[1693481304040,0.07144666,224.88,224.45,0.19143171]
[1693481304745,0.07144666,224.87,224.45,0.19143171]
[1693481305341,0.07144666,224.87,224.45,0.26206255]
[1693481305542,0.07144666,224.87,224.46,0.19143171]
[1693481305742,0.07144666,224.87,224.46,0.07063084]
[1693481305944,0.07144666,224.87,224.47,0.19143171]
[1693481306337,0.07144666,224.87,224.46,0.19143171]
[1693481306542,0.07144666,224.87,224.46,0.26206255]
[1693481306742,0.07144666,224.87,224.47,0.19143171]
[1693481307247,0.07144666,224.85,224.47,0.19143171]
[1693481307443,0.07144666,224.85,224.46,0.19143171]
[1693481307840,0.07144666,224.84,224.46,0.19143171]
[1693481308742,0.07144666,224.83,224.46,0.26206255]
[1693481308941,0.07144666,224.83,224.47,0.19143171]
[1693481310444,0.07144666,224.83,224.47,0.26206255]
[1693481310642,0.07144666,224.82,224.48,0.19143171]
[1693481311436,0.07144666,224.82,224.48,0.26206255]
[1693481311644,0.07144666,224.82,224.49,0.19143171]
[1693481311843,0.07144666,224.83,224.49,0.19143171]
[1693481312242,0.07144666,224.82,224.49,0.19143171]
[1693481318341,0.07144666,224.81,224.49,0.26206255]
[1693481318539,0.07144666,224.81,224.5,0.19143171]
[1693481320345,0.07144666,224.81,224.5,0.26206255]
[1693481320646,0.07144666,224.81,224.51,0.19143171]
[1693481321445,0.07144666,224.8,224.51,0.26206255]
[1693481321644,0.07144666,224.8,224.52,0.19143171]
[1693481322447,0.07144666,224.79,224.52,0.26206255]
[1693481322649,0.07144666,224.79,224.53,0.19143171]
[1693481323448,0.07144666,224.77,224.54,0.07063084]
[1693481323644,0.07144666,224.77,224.55,0.19143171]
[1693481324250,0.07144666,224.78,224.55,0.19143171]
[1693481324450,0.07144666,224.77,224.55,0.19143171]
[1693481329558,0.07144666,224.78,224.55,0.19143171]
[1693481329754,0.07144666,224.78,224.55,0.26206255]
[1693481329957,0.07144666,224.78,224.56,0.19143171]
[1693481335563,0.07144666,224.77,224.56,0.19143171]
[1693481336661,0.07144666,224.77,224.54,0.07063084]
[1693481336863,0.07144666,224.77,224.55,0.19102989]
[1693481339356,0.07144666,224.77,224.55,0.26166073]
[1693481339558,0.07144666,224.77,224.56,0.19102989]
[1693481339760,0.07144666,224.77,224.55,0.07063084]
[1693481339964,0.07144666,224.77,224.56,0.19102243]
[1693481344668,0.07144666,224.78,224.56,0.19102243]
[1693481354177,0.07144666,224.77,224.56,0.19102243]
[1693481354580,0.07144666,224.78,224.56,0.19102243]
[1693481357279,0.07144666,224.77,224.56,0.19102243]
[1693481357479,0.07144666,224.78,224.56,0.19102243]
[1693481357679,0.07144666,224.77,224.56,0.19102243]
[1693481361276,0.07144666,224.76,224.56,0.19102243]
[1693481361581,0.14289333,224.79,224.54,0.07063084]
[1693481361582,0.07144666,224.77,224.54,0.07063084]
[1693481361880,0.07144666,224.77,224.55,0.19096409]
[1693481362082,0.07144666,224.76,224.55,0.19096409]
[1693481362279,0.07144666,224.77,224.55,0.19096409]
[1693481380392,0.07144666,224.76,224.55,0.19096409]
[1693481380586,0.07144666,224.77,224.54,0.19096409]
[1693481380788,0.07144666,224.77,224.55,0.19096865]
[1693481382788,2.38155566,224.91,224.55,0.19096865]
[1693481382789,0.07144666,224.78,224.55,0.19096865]
[1693481383097,0.07144666,224.78,224.55,0.26159949]
[1693481383394,0.07144666,224.78,224.56,0.19096865]
[1693481384195,0.07144666,224.78,224.54,0.07063084]
[1693481384495,0.07144666,224.78,224.55,0.19092665]
[1693481388101,0.07144666,224.78,224.55,0.26155749]
[1693481388304,0.07144666,224.78,224.56,0.19092665]
[1693481390005,0.07144666,224.79,224.56,0.19092665]
[1693481390405,0.07144666,224.78,224.56,0.19092665]
[1693481390602,0.07144666,224.79,224.56,0.19092665]
[1693481401410,0.07144666,224.78,224.56,0.19092665]
[1693481401615,0.07144666,224.78,224.55,0.19092665]
[1693481401917,0.07144666,224.78,224.54,0.07063084]
[1693481401918,0.07144666,224.78,224.56,0.19092665]
[1693481402218,0.07144666,224.78,224.57,0.19092665]
[1693481402516,0.07144666,224.78,224.54,0.07063084]
[1693481402717,0.07144666,224.78,224.55,0.19088681]
[1693481403317,0.07144666,224.79,224.55,0.26151765]
[1693481403513,0.07144666,224.79,224.56,0.19088681]
[1693481404117,0.07144666,224.8,224.56,0.26151765]
[1693481404317,0.07144666,224.8,224.57,0.19088681]
[1693481405620,0.07144666,224.81,224.57,0.19088681]
[1693481406321,0.07144666,224.8,224.57,0.19088681]
[1693481406619,0.07144666,224.8,224.55,0.07063084]
[1693481406814,0.07144666,224.79,224.56,0.19087584]
[1693481407414,0.07144666,224.8,224.56,0.19087584]
[1693481409418,0.07144666,224.81,224.56,0.26150668]
[1693481409720,0.07144666,224.81,224.57,0.19087584]
[1693481411918,0.07144666,224.81,224.58,0.19087584]
[1693481412115,0.07144666,224.81,224.59,0.19087584]
[1693481412319,0.07144666,224.81,224.57,0.19087584]
[1693481412521,0.07144666,224.82,224.58,0.19078003]
[1693481412721,0.07144666,224.82,224.59,0.19078003]
[1693481412925,0.07144666,224.82,224.57,0.19078003]
[1693481413121,0.07144666,224.82,224.58,0.19078266]
[1693481413319,0.07144666,224.82,224.59,0.19078266]
[1693481413521,0.07144666,224.82,224.57,0.19078266]
[1693481413722,0.07144666,224.82,224.58,0.19077811]
[1693481413922,0.07144666,224.82,224.59,0.19077811]
[1693481414223,0.07144666,224.82,224.56,0.07063084]
[1693481414423,0.07144666,224.82,224.57,0.19077587]
[1693481414621,0.07144666,224.83,224.57,0.19077587]
[1693481414823,0.07144666,224.82,224.57,0.19077587]
[1693481416722,0.07144666,224.83,224.57,0.19077587]
[1693481416919,0.07144666,224.82,224.57,0.19077587]
[1693481417618,0.07144666,224.81,224.57,0.19077587]
[1693481417926,0.07144666,224.81,224.58,0.19077587]
[1693481418127,0.07144666,224.81,224.54,0.07063084]
[1693481418326,0.07144666,224.8,224.55,0.19086064]
[1693481422531,0.07144666,224.79,224.55,0.19086064]
[1693481422936,0.07144666,224.79,224.3,0.94174463]
[1693481422937,0.07144666,224.78,224.54,0.19086064]
[1693481423134,0.07144666,224.78,224.55,0.19095348]
[1693481423330,0.07144666,224.78,224.53,0.19095348]
[1693481423533,0.07144666,224.78,224.54,0.19095408]
[1693481423729,0.07144666,224.78,224.53,0.19095408]
[1693481423932,0.07144666,224.78,224.54,0.19095408]
[1693481424233,0.07144666,224.78,224.52,0.07063084]
[1693481424234,0.07144666,224.78,224.55,0.19095408]
[1693481424434,0.07144666,224.78,224.56,0.19095408]
[1693481424735,0.07144666,224.79,224.52,0.07063084]
[1693481424934,0.07144666,224.78,224.53,0.19093981]
[1693481425135,0.07144666,224.79,224.53,0.19093981]
[1693481425336,0.07144666,224.78,224.53,0.19093981]
[1693481425535,0.07144666,224.79,224.53,0.19093981]
[1693481428529,0.07144666,224.78,224.53,0.19093981]
[1693481428732,0.07144666,224.79,224.54,0.19093981]
[1693481428936,0.07144666,224.78,224.55,0.19093981]
[1693481429134,0.07144666,224.78,224.51,0.07063084]
[1693481429337,0.07144666,224.78,224.52,0.19096793]
[1693481429538,0.07144666,224.79,224.52,0.19096793]
[1693481430239,0.07144666,224.79,224.52,0.26159877]
[1693481430441,0.07144666,224.79,224.53,0.19096793]
[1693481430639,0.07144666,224.79,224.54,0.19096793]
[1693481430842,0.07144666,224.79,224.52,0.19096793]
[1693481431139,0.07144666,224.79,224.53,0.19096793]
[1693481431339,0.07144666,224.79,224.54,0.19096793]
[1693481431534,0.07144666,224.78,224.5,0.07063084]
[1693481431738,0.07144666,224.78,224.0,3.29610623]
[1693481431739,0.07144666,224.73,224.45,0.07063084]
[1693481431938,0.07144666,224.75,224.46,0.19126677]
[1693481432241,0.07144666,224.75,224.47,0.19126677]
[1693481432439,0.07144666,224.75,224.48,0.19126677]
[1693481432636,0.07144666,224.76,224.49,0.19126677]
[1693481432841,0.07144666,224.76,224.44,0.19126677]
[1693481433141,0.07144666,224.76,224.45,0.19127402]
[1693481433442,0.07144666,224.76,224.46,0.19127402]
[1693481433634,0.07144666,224.76,224.47,0.19127402]
[1693481433842,0.07144666,224.76,224.43,0.19127402]
[1693481434041,0.07144666,224.76,224.44,0.19127402]
[1693481434241,0.07144666,224.76,224.43,0.19127402]
[1693481434441,0.07144666,224.76,224.44,0.19127402]
[1693481434642,0.07144666,224.77,224.45,0.19127402]
[1693481434839,0.07144666,224.77,224.46,0.19127402]
[1693481435040,0.07144666,224.77,224.42,0.19127402]
[1693481435245,0.07144666,224.77,224.43,0.19127402]
[1693481435438,0.07144666,224.77,224.42,0.19127402]
[1693481435641,0.07144666,224.77,224.43,0.19127402]
[1693481435841,0.07144666,224.77,224.44,0.19127402]
[1693481436144,0.07144666,224.77,224.45,0.19127402]
[1693481436343,0.07144666,224.77,224.4,0.07063084]
[1693481436344,0.07144666,224.77,224.46,0.19127402]
[1693481436540,0.07144666,224.77,224.41,0.19127402]
[1693481436741,0.07144666,224.78,224.42,0.19127402]
[1693481437039,0.07144666,224.78,224.43,0.19127402]
[1693481437344,0.07144666,224.78,224.44,0.19127402]
[1693481437546,0.07144666,224.78,224.45,0.19127402]
[1693481437846,0.07144666,224.78,224.46,0.19127402]
[1693481438038,0.07144666,224.78,224.4,0.19127402]
[1693481438243,0.07144666,224.78,224.41,0.19127402]
[1693481438445,0.07144666,224.78,224.42,0.19127402]
[1693481438642,0.07144666,224.78,224.4,0.19127402]
[1693481438842,0.07144666,224.78,224.41,0.19127402]
[1693481439044,0.07144666,224.78,224.39,0.07063084]
[1693481439045,0.07144666,224.78,224.42,0.19127402]
[1693481439242,0.07144666,224.78,224.4,0.19127402]
[1693481439439,0.07144666,224.79,224.41,0.19127402]
[1693481439646,0.07144666,224.78,224.42,0.19127402]
[1693481439846,0.07144666,224.79,224.4,0.19127402]
[1693481440046,0.07144666,224.79,224.41,0.19127402]
[1693481440246,0.07144666,224.79,224.42,0.19127402]
[1693481440548,0.07144666,224.79,224.43,0.19127402]
[1693481440743,0.07144666,224.79,224.44,0.19127402]
[1693481440945,0.07144666,224.79,224.39,0.19127402]
[1693481441147,0.07144666,224.79,224.4,0.19127402]
[1693481441447,0.07144666,224.79,224.41,0.19127402]
[1693481441641,0.14289333,224.81,224.31,0.14126169]
[1693481441642,0.07144666,224.78,224.39,0.19127402]
[1693481441844,0.07144666,224.78,224.4,0.19127402]
[1693481442048,0.07144666,224.78,224.41,0.19127402]
[1693481442342,0.07144666,224.78,224.42,0.19127402]
[1693481442545,0.07144666,224.78,224.37,0.07063084]
[1693481442546,0.07144666,224.78,224.43,0.19127402]
[1693481442748,0.07144666,224.79,224.38,0.19127402]
[1693481442940,0.07144666,224.79,224.37,0.07063084]
[1693481442941,0.07144666,224.79,224.39,0.19127402]
[1693481443140,0.07144666,224.77,224.4,0.19127402]
[1693481443447,0.07144666,224.77,224.41,0.19127402]
[1693481443648,0.07144666,224.77,224.42,0.19127402]
[1693481443848,0.07144666,224.77,224.43,0.19127402]
[1693481444147,0.07144666,224.77,224.44,0.19127402]
[1693481444446,0.07144666,224.77,224.45,0.19127402]
[1693481444640,0.07144666,224.73,224.28,0.07063084]
[1693481444841,0.07144666,224.73,224.29,0.19165349]
[1693481445041,0.07144666,224.73,224.29,0.26228433]
[1693481445354,0.07144666,224.73,224.3,0.19165349]
[1693481445549,0.07144666,224.73,224.29,0.19165349]
[1693481445749,0.07144666,224.74,224.29,0.19165349]
[1693481445950,0.07144666,224.74,224.27,0.07063084]
[1693481445951,0.07144666,224.74,224.31,0.19165349]
[1693481446151,0.07144666,224.74,224.32,0.19165349]
[1693481446444,0.07144666,224.74,224.33,0.19165349]
[1693481446643,0.07144666,224.74,224.28,0.19165349]
[1693481446839,0.07144666,224.74,224.29,0.19165349]
[1693481447046,0.07144666,224.74,224.3,0.19165349]
[1693481447244,0.07144666,224.74,224.31,0.19165349]
[1693481447446,0.07144666,224.74,224.28,0.19165349]
[1693481447643,0.07144666,224.74,224.29,0.19165349]
[1693481447848,0.81817805,224.73,224.3,0.19165349]
[1693481448043,0.81817805,224.73,224.31,0.19165349]
[1693481448244,0.81817805,224.73,224.26,0.19165349]
[1693481448442,0.81817805,224.73,224.27,0.19165349]
[1693481448643,0.81817805,224.73,224.28,0.19165349]
[1693481448847,0.81817805,224.73,224.27,0.19165349]
[1693481449045,0.81817805,224.73,224.28,0.19165349]
[1693481449247,0.81817805,224.73,224.29,0.19165349]
[1693481449551,0.81817805,224.73,224.3,0.19165349]
[1693481449748,0.81817805,224.73,224.26,0.19165349]
[1693481449949,0.07144666,224.75,224.27,0.19165349]
[1693481450152,0.81817396,224.74,224.28,0.19165349]
[1693481450449,0.81817396,224.74,224.29,0.19165349]
[1693481450650,0.81817396,224.74,224.26,0.19165349]
[1693481450849,0.81817396,224.74,224.27,0.19165349]
[1693481451051,0.81817396,224.74,224.25,0.19165349]
[1693481451251,0.81817396,224.74,224.26,0.19165349]
[1693481451751,0.81817396,224.74,224.27,0.19165349]
[1693481451951,0.81817396,224.74,224.26,0.19165349]
[1693481452150,0.81817396,224.74,224.27,0.19165349]
[1693481452450,0.81817396,224.74,224.28,0.19165349]
[1693481452651,0.81817396,224.74,224.25,0.26228433]
[1693481452847,0.81817396,224.74,224.26,0.19165349]
[1693481453048,0.81817396,224.74,224.25,0.26228433]
[1693481453248,0.81817396,224.74,224.26,0.19165349]
[1693481453850,0.81817396,224.74,224.27,0.19165349]
[1693481454045,0.81817396,224.74,224.28,0.19165349]
[1693481454251,0.81817396,224.74,224.29,0.19165349]
[1693481454448,0.81817396,224.74,224.26,0.19165349]
[1693481454648,0.81817396,224.74,224.27,0.19165349]
[1693481454852,0.81817396,224.74,224.26,0.19165349]
[1693481455157,0.81817396,224.74,224.27,0.19165349]
[1693481455350,0.81817396,224.74,224.26,0.19165349]
[1693481455553,0.81817396,224.74,224.27,0.19165349]
[1693481455755,0.81817396,224.74,224.26,0.19165349]
[1693481456154,0.88962062,224.74,224.26,0.19165349]
[1693481456357,0.81817396,224.73,224.26,0.19165349]
[1693481456754,0.81817396,224.73,224.27,0.19165349]
[1693481457055,0.81817396,224.73,224.28,0.19165349]
[1693481457255,0.81817396,224.73,224.25,0.26228433]
[1693481457555,0.81817396,224.73,224.26,0.19165349]
[1693481459960,0.88962062,224.73,224.26,0.19165349]
[1693481460159,0.07144666,224.73,224.26,0.19165349]
[1693481460458,0.07144666,224.73,224.26,0.26228433]
[1693481460660,0.07144666,224.73,224.27,0.19165349]
[1693481461759,0.07144666,224.73,224.27,0.26228433]
[1693481461959,0.07144666,224.73,224.28,0.19165349]
[1693481462357,0.07144666,224.72,224.28,0.19165349]
[1693481462552,0.07144666,224.72,224.27,0.19165349]
[1693481462753,0.07144666,224.72,224.28,0.19165349]
[1693481463761,0.07144666,224.71,224.28,0.26228433]
[1693481463959,0.07144666,224.71,224.29,0.19165349]
[1693481464360,0.07144666,224.71,224.28,0.19165349]
[1693481464558,0.07144666,224.71,224.29,0.19165349]
[1693481464760,0.07144666,224.7,224.28,0.26228433]
[1693481464955,0.07144666,224.7,224.29,0.19165349]
[1693481465760,0.07144666,224.69,224.29,0.26228433]
[1693481465961,0.07144666,224.69,224.3,0.19165349]
[1693481468768,0.07144666,224.68,224.3,0.19165349]
[1693481470669,0.07144666,224.67,224.3,0.26228433]
[1693481470872,0.07144666,224.67,224.31,0.19165349]
[1693481472770,0.07144666,224.66,224.31,0.19165349]
[1693481473467,0.07144666,224.66,224.31,0.26228433]
[1693481473664,0.07144666,224.66,224.32,0.19165349]
[1693481474773,0.07144666,224.65,224.32,0.26228433]
[1693481474974,0.07144666,224.65,224.33,0.19165349]
[1693481475773,0.07144666,224.64,224.33,0.26228433]
[1693481475975,0.07144666,224.64,224.34,0.19165349]
[1693481476677,0.07144666,224.63,224.34,0.19165349]
[1693481476870,0.07144666,224.62,224.33,0.26228433]
[1693481477071,0.07144666,224.62,224.34,0.19165349]
[1693481477672,0.07144666,224.61,224.34,0.26228433]
[1693481477877,0.07144666,224.61,224.35,0.19165349]
[1693481478675,0.07144666,224.6,224.35,0.26228433]
[1693481478877,0.07144666,224.6,224.36,0.26228433]
[1693481479183,0.07144666,224.6,224.37,0.19165349]
[1693481490683,0.07144666,224.6,224.37,0.26228433]
[1693481490880,0.07144666,224.6,224.38,0.19165349]
[1693481492084,0.07144666,224.61,224.38,0.19165349]
[1693481497497,0.07144666,224.61,224.38,0.26228433]
[1693481497796,0.07144666,224.61,224.39,0.19165349]
[1693481499595,0.07013026,224.61,224.39,0.19165349]
[1693481502701,0.07013026,224.61,224.39,0.26228433]
[1693481502901,0.07013026,224.61,224.4,0.19165349]
[1693481503303,0.07013026,224.61,224.39,0.19165349]
[1693481503498,0.07013026,224.61,224.4,0.1910762]
[1693481503700,0.07013026,224.61,224.39,0.07063084]
[1693481503901,0.07013026,224.61,224.4,0.19107709]
[1693481504806,0.07013026,224.61,224.39,0.07063084]
[1693481505105,0.14289333,224.68,224.44,0.07063084]
[1693481505405,0.14289333,224.68,224.45,0.19085241]
[1693481505804,0.14289333,224.7,224.45,0.19085241]
[1693481506004,0.14289333,224.7,224.42,0.07063084]
[1693481506300,0.14289333,224.7,224.43,0.26143361]
[1693481506502,0.14289333,224.7,224.44,0.19080277]
[1693481506703,0.14289333,224.71,224.44,0.19080277]
[1693481506903,0.14289333,224.71,224.45,0.19080277]
[1693481507203,0.14289333,224.71,224.42,0.07063084]
[1693481507404,0.14289333,224.71,224.43,0.19081405]
[1693481507904,0.95262226,224.77,224.43,0.19081405]
[1693481507905,0.14289333,224.72,224.43,0.19081405]
[1693481508104,0.14289333,224.72,224.42,0.19081405]
[1693481508302,0.14289333,224.72,224.43,0.19081405]
[1693481508497,0.14289333,224.72,224.44,0.19081405]
[1693481508699,0.14289333,224.72,224.45,0.19081405]
[1693481508902,0.14289333,224.67,224.35,0.07063084]
[1693481509102,0.14289333,224.67,224.36,0.19112635]
[1693481511197,0.14289333,224.66,224.36,0.19112635]
[1693481512607,0.14289333,224.67,224.36,0.19112635]
[1693481512807,0.14289333,224.66,224.36,0.19112635]
[1693481513212,0.14289333,224.67,224.36,0.19112635]
[1693481513406,0.14289333,224.66,224.36,0.19112635]
[1693481513909,0.14289333,224.67,224.37,0.19112635]
[1693481514105,0.14289333,224.67,224.36,0.19112635]
[1693481514306,0.14289333,224.67,224.37,0.19112635]
[1693481514506,0.14289333,224.67,224.36,0.19112635]
[1693481514810,0.14289333,224.67,224.37,0.19112635]
[1693481515106,0.14289333,224.67,224.38,0.19112635]
[1693481515309,0.14289333,224.67,224.39,0.19112635]
[1693481515511,0.14289333,224.67,224.4,0.19112635]
[1693481515708,0.14289333,224.67,224.36,0.19112635]
[1693481515908,0.14289333,224.67,224.37,0.19109423]
[1693481516210,0.14289333,224.67,224.38,0.19109423]
[1693481516412,0.14289333,224.67,224.36,0.19109423]
[1693481516713,0.14289333,224.67,224.37,0.19109423]
[1693481516913,0.14289333,224.67,224.38,0.19109423]
[1693481517114,0.14289333,224.67,224.39,0.19109423]
[1693481517414,0.14289333,224.67,224.4,0.19109423]
[1693481517614,0.14289333,224.66,224.35,0.07063084]
[1693481517814,0.14289333,224.67,224.36,0.19111798]
[1693481518015,0.14289333,224.66,224.36,0.19111798]
[1693481518411,0.14289333,224.67,224.36,0.19111798]
[1693481521419,0.14289333,224.68,224.36,0.19111798]
[1693481521620,0.14289333,224.68,224.36,0.26174882]
[1693481521819,0.14289333,224.68,224.37,0.19111798]
[1693481522021,0.14289333,224.72,224.4,0.07063084]
[1693481522219,0.14289333,224.72,224.41,0.19111798]
[1693481522520,0.14289333,224.73,224.41,0.19111798]
[1693481524424,0.14289333,224.73,224.42,0.19111798]
[1693481524617,0.14289333,224.73,224.43,0.19111798]
[1693481524816,0.14289333,224.73,224.44,0.19111798]
[1693481525018,0.14289333,224.73,224.4,0.19111798]
[1693481525223,0.14289333,224.73,224.41,0.19111798]
[1693481525423,0.14289333,224.73,224.42,0.19111798]
[1693481525725,0.14289333,224.74,224.43,0.19111798]
[1693481526019,0.14289333,224.73,224.44,0.19111798]
[1693481526222,0.14289333,224.74,224.45,0.19111798]
[1693481526420,0.14289333,224.74,224.38,0.07063084]
[1693481526421,0.14289333,224.73,224.38,0.07063084]
[1693481526724,0.14289333,224.73,224.39,0.19083995]
[1693481528826,0.14289333,224.73,224.38,0.19083995]
[1693481529028,0.14289333,224.73,224.39,0.19083995]
[1693481529326,0.14289333,224.73,224.4,0.19083995]
[1693481529527,0.14289333,224.73,224.38,0.19083995]
[1693481529729,0.14289333,224.73,224.39,0.19083995]
[1693481529928,0.14289333,224.73,224.4,0.19083995]
[1693481530230,0.14289333,224.74,224.41,0.19083995]
[1693481530528,0.14289333,224.74,224.42,0.19083995]
[1693481530725,0.14289333,224.74,224.39,0.19083995]
[1693481530931,0.14289333,224.74,224.4,0.19083995]
[1693481531124,0.14289333,224.74,224.39,0.19083995]
[1693481531328,0.14289333,224.74,224.4,0.19083995]
[1693481531529,0.14289333,224.74,224.41,0.19083995]
[1693481531725,0.14289333,224.74,224.38,0.19083995]
[1693481531930,0.14289333,224.74,224.39,0.19083995]
[1693481532130,0.14289333,224.74,224.4,0.19083995]
[1693481532430,0.14289333,224.74,224.41,0.19083995]
[1693481532625,0.14289333,224.74,224.38,0.19083995]
[1693481532830,0.14289333,224.74,224.39,0.19083995]
[1693481533031,0.14289333,224.74,224.38,0.19083995]
[1693481533333,0.14289333,224.74,224.39,0.19083995]
[1693481533531,0.14289333,224.74,224.38,0.19083995]
[1693481533732,0.14289333,224.74,224.39,0.19083995]
[1693481533933,0.14289333,224.74,224.4,0.19083995]
[1693481534133,0.14289333,224.74,224.38,0.19083995]